bitfinex/quotes_SOLUSD_20250403
["timestamp","ask_amount","ask_price","bid_price","bid_amount"]
[1743696243225,165.61484401,114.53,114.49,8.7341]
[1743696243429,142.901,114.61,114.52,56.33052087]
[1743696243637,30.33052087,114.6,114.56,30.33052087]
[1743696243812,30.33052087,114.6,114.5,26.86711043]
[1743696244012,30.33052087,114.6,114.51,0.14216157]
[1743696244319,30.33052087,114.6,114.5,38.40582087]
[1743696244320,0.28432314,114.54,114.5,38.40582087]
[1743696244526,0.28432314,114.54,114.5,8.0753]
[1743696244714,0.28432314,114.54,114.5,38.40582087]
[1743696244920,0.28432314,114.54,114.49,30.57]
[1743696245237,0.28432314,114.54,114.5,30.33052087]
[1743696245415,30.61484401,114.54,114.5,8.733]
[1743696245731,30.61484401,114.52,114.49,8.734]
[1743696246321,0.42648471,114.52,114.46,8.7366]
[1743696246640,0.28432314,114.5,114.46,39.06712087]
[1743696246812,10.18432314,114.5,114.46,60.90872087]
[1743696247008,9.9,114.5,114.48,30.33052087]
[1743696247337,135.0,114.52,114.49,30.33052087]
[1743696247519,9.92,114.54,114.51,30.33052087]
[1743696247833,9.92,114.54,114.5,39.06412087]
[1743696248142,9.92,114.54,114.5,60.89812087]
[1743696248834,40.25052087,114.54,114.5,8.7336]
[1743696249039,0.28432314,114.53,114.5,8.7336]
[1743696249329,30.61484401,114.53,114.5,8.7336]
[1743696249543,30.61484401,114.53,114.49,8.7343]
[1743696249831,0.28432314,114.5,114.45,21.8417]
[1743696250022,165.33052087,114.52,114.47,30.33052087]
[1743696250229,0.28432314,114.51,114.46,21.8416]
[1743696250429,135.0,114.52,114.47,30.33052087]
[1743696250628,135.0,114.52,114.48,30.33052087]
[1743696250817,30.61484401,114.53,114.48,30.33052087]
[1743696251021,30.33052087,114.52,114.46,21.8416]
[1743696251229,30.33052087,114.5,114.46,21.8416]
[1743696251539,30.33052087,114.5,114.46,30.5782]
[1743696251836,0.28432314,114.51,114.48,30.33052087]
[1743696252037,135.0,114.54,114.5,30.33052087]
[1743696252338,135.0,114.54,114.51,30.33052087]
[1743696252639,30.33052087,114.54,114.49,30.33052087]
[1743696252835,30.33052087,114.53,114.49,30.33052087]
[1743696253020,0.28432314,114.52,114.48,30.33052087]
[1743696253217,0.28432314,114.51,114.47,30.33052087]
[1743696253831,0.28432314,114.51,114.48,8.7351]
[1743696254234,30.61484401,114.51,114.48,8.7351]
[1743696254550,30.33052087,114.5,114.48,8.7351]
[1743696254840,40.49484401,114.51,114.48,8.7351]
[1743696255221,30.33052087,114.5,114.48,8.7351]
[1743696255736,0.28432314,114.49,114.44,7.7473]
[1743696255919,30.33052087,114.48,114.44,21.8445]
[1743696256121,30.33052087,114.48,114.45,8.7374]
[1743696256325,30.33052087,114.47,114.45,8.7374]
[1743696256524,0.28432314,114.48,114.45,8.7374]
[1743696256722,30.61484401,114.48,114.45,8.7374]
[1743696256921,0.28432314,114.46,114.45,8.7374]
[1743696257838,135.0,114.48,114.44,30.5837]
[1743696258034,135.0,114.48,114.45,30.33052087]
[1743696258219,0.28432314,114.49,114.45,30.33052087]
[1743696258420,9.96216157,114.5,114.46,30.33052087]
[1743696258622,9.82,114.5,114.44,30.5837]
[1743696258820,9.82,114.5,114.47,30.33052087]
[1743696259920,357.33052087,114.54,114.49,30.33052087]
[1743696260148,30.33052087,114.52,114.48,30.5729]
[1743696260323,30.33052087,114.51,114.48,8.7351]
[1743696260516,30.33052087,114.49,114.48,8.7351]
[1743696260828,30.33052087,114.49,114.42,21.8493]
[1743696260829,0.28432314,114.48,114.42,21.8493]
[1743696261014,30.33052087,114.47,114.43,30.33052087]
[1743696261214,30.33052087,114.46,114.42,52.17982087]
[1743696261414,0.28432314,114.47,114.43,30.33052087]
[1743696262049,0.28432314,114.47,114.42,30.589]
[1743696262217,30.61484401,114.47,114.43,30.33052087]
[1743696262717,0.28432314,114.47,114.44,30.33052087]
[1743696262913,0.28432314,114.47,114.43,30.33052087]
[1743696263841,0.28432314,114.47,114.42,74.2876]
[1743696264021,0.28432314,114.47,114.45,8.7374]
[1743696264218,11.3905,114.51,114.46,30.33052087]
[1743696264526,9.8,114.51,114.48,30.33052087]
[1743696264724,9.8,114.51,114.49,30.33052087]
[1743696265120,9.8,114.51,114.45,74.268]
[1743696265333,0.28432314,114.5,114.45,74.268]
[1743696265534,0.28432314,114.5,114.46,30.33052087]
[1743696265724,0.28432314,114.47,114.45,30.5809]
[1743696266122,0.28432314,114.47,114.45,21.8435]
[1743696266325,0.28432314,114.47,114.43,30.33052087]
[1743696266549,0.28432314,114.45,114.42,74.2876]
[1743696266931,0.28432314,114.45,114.43,30.33052087]
[1743696268335,0.28432314,114.45,114.44,8.7382]
[1743696270240,9.78,114.46,114.42,43.6986]
[1743696270448,9.78,114.46,114.44,30.33052087]
[1743696270963,0.28432314,114.47,114.44,30.33052087]
[1743696271130,9.7,114.49,114.46,30.33052087]
[1743696271333,0.28432314,114.48,114.42,74.02912087]
[1743696271527,9.7,114.49,114.47,30.33052087]
[1743696272190,0.28432314,114.48,114.47,30.33052087]
[1743696272359,0.28432314,114.48,114.42,104.61812087]
[1743696272360,0.14216157,114.48,114.42,104.61812087]
[1743696272533,49.40665444,114.48,114.44,30.33052087]
[1743696272731,184.40665444,114.48,114.43,30.33052087]
[1743696272951,30.33052087,114.47,114.43,30.33052087]
[1743696273552,0.28432314,114.45,114.42,30.589]
[1743696273773,0.28432314,114.43,114.42,8.7397]
[1743696274353,0.28432314,114.43,114.4,52.18262087]
[1743696274556,9.68,114.44,114.4,21.8521]
[1743696274753,9.68,114.44,114.42,30.33052087]
[1743696274947,9.68,114.44,114.41,30.33052087]
[1743696275271,9.68,114.44,114.42,30.33052087]
[1743696275447,9.68,114.44,114.43,30.33052087]
[1743696275849,9.68,114.44,114.42,30.33052087]
[1743696276480,9.96432314,114.44,114.43,8.7389]
[1743696278266,9.68,114.44,114.43,8.7389]
[1743696278456,0.28432314,114.45,114.43,60.91682087]
[1743696278657,0.28432314,114.45,114.43,30.5863]
[1743696278859,0.28432314,114.45,114.43,60.91682087]
[1743696279571,0.28432314,114.45,114.44,30.33052087]
[1743696280244,135.0,114.46,114.44,30.33052087]
[1743696280446,135.0,114.46,114.45,8.7374]
[1743696280654,0.28432314,114.46,114.45,8.7374]
[1743696282468,0.28432314,114.46,114.44,30.5824]
[1743696283648,30.61484401,114.45,114.43,8.7386]
[1743696283849,136.5798,114.48,114.44,30.33052087]
[1743696284054,0.28432314,114.47,114.44,30.33052087]
[1743696284461,0.28432314,114.47,114.45,8.7374]
[1743696284842,19.07613357,114.47,114.45,8.7374]
[1743696285058,19.07613357,114.47,114.44,8.7382]
[1743696285059,49.40665444,114.47,114.44,8.7382]
[1743696285447,19.07613357,114.47,114.44,8.7382]
[1743696285771,49.40665444,114.47,114.44,8.7382]
[1743696286352,19.07613357,114.47,114.44,8.7382]
[1743696286552,28.67613357,114.47,114.44,30.5837]
[1743696286869,142.6474,114.53,114.46,30.33052087]
[1743696287072,142.6474,114.53,114.44,117.9657]
[1743696287073,0.28432314,114.52,114.5,30.33052087]
[1743696287373,1.5134,114.53,114.5,30.33052087]
[1743696287374,9.78216157,114.54,114.5,30.33052087]
[1743696287551,0.28432314,114.53,114.5,30.33052087]
[1743696287949,0.28432314,114.53,114.44,117.9657]
[1743696287950,0.28432314,114.53,114.51,30.33052087]
[1743696288156,9.64,114.54,114.51,30.33052087]
[1743696288449,0.28432314,114.53,114.5,30.33052087]
[1743696288780,19.07613357,114.53,114.51,8.7328]
[1743696288982,0.28432314,114.53,114.51,8.7328]
[1743696289162,9.64,114.54,114.51,60.89542087]
[1743696289344,18.79181043,114.55,114.51,60.89542087]
[1743696289546,9.64,114.55,114.52,30.33052087]
[1743696290171,0.28432314,114.54,114.52,30.33052087]
[1743696290377,136.5134,114.56,114.53,30.33052087]
[1743696290581,336.74,114.57,114.54,30.33052087]
[1743696290759,336.74,114.57,114.55,8.7298]
[1743696290962,327.12,114.57,114.55,8.7298]
[1743696292076,0.28432314,114.56,114.55,8.7298]
[1743696292257,327.12,114.57,114.55,39.06032087]
[1743696292456,327.12,114.57,114.55,8.7298]
[1743696292653,327.12,114.57,114.55,39.06032087]
[1743696292858,327.12,114.57,114.55,8.7298]
[1743696294468,0.28432314,114.56,114.55,8.7298]
[1743696294880,0.28432314,114.56,114.55,39.06032087]
[1743696295865,0.28432314,114.56,114.55,8.7298]
[1743696296064,0.28432314,114.56,114.54,39.06072087]
[1743696296262,30.61484401,114.56,114.52,39.06222087]
[1743696296472,30.61484401,114.56,114.52,8.7317]
[1743696296673,0.28432314,114.54,114.51,8.7323]
[1743696296869,30.61484401,114.54,114.51,8.7323]
[1743696297171,30.61484401,114.54,114.49,8.7343]
[1743696297172,0.28432314,114.52,114.49,8.7343]
[1743696297371,0.28432314,114.52,114.5,30.33052087]
[1743696297684,0.28432314,114.55,114.51,30.33052087]
[1743696297862,0.28432314,114.55,114.52,30.33052087]
[1743696298186,0.28432314,114.55,114.53,8.7313]
[1743696298783,0.28432314,114.55,114.53,39.06182087]
[1743696299569,9.52,114.56,114.54,30.33052087]
[1743696299882,0.28432314,114.56,114.54,30.33052087]
[1743696300087,9.5,114.58,114.55,30.33052087]
[1743696300385,326.96,114.6,114.57,30.33052087]
[1743696300781,326.96,114.6,114.59,30.33052087]
[1743696300965,327.24432314,114.6,114.59,30.33052087]
[1743696301164,1.5159,114.62,114.59,30.33052087]
[1743696301378,1.5159,114.62,114.54,30.33052087]
[1743696301579,31.84642087,114.62,114.55,30.5543]
[1743696301782,31.84642087,114.62,114.58,30.33052087]
[1743696301783,20.16554886,114.62,114.58,30.33052087]
[1743696301987,0.28432314,114.61,114.57,30.33052087]
[1743696302289,0.28432314,114.57,114.55,8.7298]
[1743696304675,9.54,114.58,114.55,8.7298]
[1743696304874,9.82432314,114.58,114.57,30.33052087]
[1743696305070,0.28432314,114.58,114.56,30.33052087]
[1743696305285,0.28432314,114.58,114.55,30.5543]
[1743696305477,0.28432314,114.57,114.54,30.33052087]
[1743696305684,0.28432314,114.57,114.54,8.7301]
[1743696306074,0.28432314,114.57,114.54,39.06062087]
[1743696306383,9.48,114.6,114.56,30.33052087]
[1743696306697,0.14216157,114.59,114.57,30.33052087]
[1743696306874,0.28432314,114.59,114.57,30.33052087]
[1743696307594,0.28432314,114.59,114.58,8.7275]
[1743696308282,0.28432314,114.59,114.56,8.729]
[1743696308483,49.40665444,114.59,114.55,8.7294]
[1743696308685,49.40665444,114.59,114.55,39.05992087]
[1743696308884,19.07613357,114.59,114.55,39.05992087]
[1743696309485,49.40665444,114.59,114.55,8.7294]
[1743696309704,49.40665444,114.59,114.54,30.33052087]
[1743696309872,19.07613357,114.59,114.56,30.33052087]
[1743696310279,0.28432314,114.59,114.56,30.33052087]
[1743696310494,0.28432314,114.59,114.57,30.33052087]
[1743696310684,9.48,114.6,114.58,30.33052087]
[1743696310995,0.28432314,114.59,114.57,30.33052087]
[1743696311199,0.14216157,114.59,114.57,30.33052087]
[1743696311396,0.28432314,114.59,114.56,30.33052087]
[1743696311895,0.28432314,114.59,114.57,8.7282]
[1743696312077,326.86,114.62,114.58,30.33052087]
[1743696312272,326.86,114.62,114.57,30.5489]
[1743696312273,357.19052087,114.62,114.57,30.5489]
[1743696312479,0.14216157,114.6,114.57,8.7282]
[1743696312698,0.28432314,114.6,114.57,39.05872087]
[1743696313071,0.28432314,114.6,114.58,30.33052087]
[1743696313373,0.28432314,114.6,114.57,60.87942087]
[1743696313773,0.28432314,114.6,114.58,30.33052087]
[1743696314187,0.28432314,114.6,114.55,30.5543]
[1743696314392,0.28432314,114.6,114.58,30.33052087]
[1743696314796,0.28432314,114.6,114.55,30.5543]
[1743696314797,0.14216157,114.6,114.55,30.5543]
[1743696315005,0.28432314,114.6,114.56,30.33052087]
[1743696315493,49.40665444,114.6,114.56,30.33052087]
[1743696315699,19.07613357,114.6,114.56,30.33052087]
[1743696316000,19.07613357,114.61,114.57,30.33052087]
[1743696316313,326.86,114.62,114.54,30.33052087]
[1743696316470,0.28432314,114.61,114.6,30.33052087]
[1743696316675,9.46,114.65,114.57,1.5655]
[1743696316901,0.14216157,114.66,114.62,30.33052087]
[1743696317224,357.13052087,114.69,114.64,30.33052087]
[1743696317504,357.13052087,114.69,114.6,30.33052087]
[1743696317505,30.33052087,114.68,114.6,30.33052087]
[1743696317686,30.33052087,114.66,114.61,30.33052087]
[1743696318178,18.79181043,114.65,114.61,30.33052087]
[1743696318499,0.28432314,114.64,114.61,30.33052087]
[1743696318701,0.28432314,114.64,114.6,39.05652087]
[1743696319007,18.933972,114.64,114.6,39.05652087]
[1743696319324,49.26449287,114.62,114.56,6.3988]
[1743696319480,49.26449287,114.62,114.57,8.7282]
[1743696319812,18.933972,114.62,114.58,30.33052087]
[1743696319991,30.47268244,114.61,114.57,39.05872087]
[1743696320408,0.14216157,114.61,114.57,39.05872087]
[1743696320607,0.14216157,114.61,114.55,8.7294]
[1743696320608,30.47268244,114.59,114.55,8.7294]
[1743696320796,0.28432314,114.57,114.54,8.7302]
[1743696321191,9.46,114.58,114.55,30.33052087]
[1743696321382,9.74432314,114.58,114.57,30.33052087]
[1743696321588,9.46,114.6,114.57,30.33052087]
[1743696321888,0.28432314,114.59,114.57,30.33052087]
[1743696322087,0.28432314,114.59,114.56,30.33052087]
[1743696322287,0.28432314,114.59,114.57,8.7282]
[1743696322489,0.28432314,114.59,114.57,39.05872087]
[1743696323595,30.33052087,114.58,114.53,52.15812087]
[1743696324002,30.33052087,114.58,114.53,21.8276]
[1743696324197,49.40665444,114.59,114.53,21.8276]
[1743696324407,49.40665444,114.59,114.54,30.33052087]
[1743696324712,58.13345444,114.59,114.53,21.8276]
[1743696324907,58.13345444,114.59,114.54,30.33052087]
[1743696325122,0.28432314,114.59,114.56,34.58744749]
[1743696325329,0.14216157,114.59,114.57,34.58744749]
[1743696325528,18.64964886,114.62,114.58,34.58744749]
[1743696325809,0.28432314,114.6,114.59,34.58744749]
[1743696326488,0.28432314,114.6,114.59,43.31414749]
[1743696326692,9.5,114.61,114.59,43.31414749]
[1743696326908,9.5,114.61,114.58,43.31454749]
[1743696327109,0.28432314,114.6,114.57,43.31534749]
[1743696327297,0.14216157,114.59,114.57,43.31534749]
[1743696327910,0.14216157,114.6,114.58,34.58744749]
[1743696328114,0.28432314,114.6,114.58,34.58744749]
[1743696328301,0.14216157,114.6,114.58,34.58744749]
[1743696328502,0.14216157,114.6,114.55,30.5543]
[1743696328913,0.14216157,114.6,114.57,34.58744749]
[1743696329098,9.5,114.61,114.59,34.58744749]
[1743696329099,0.28432314,114.61,114.59,34.58744749]
[1743696329510,0.28432314,114.61,114.58,34.58744749]
[1743696330106,9.48,114.62,114.6,34.58744749]
[1743696330293,0.14216157,114.63,114.6,34.58744749]
[1743696330294,9.88648471,114.63,114.6,34.58744749]
[1743696330499,0.42648471,114.63,114.62,8.7244]
[1743696330906,328.2723,114.66,114.62,43.31184749]
[1743696331104,0.14216157,114.65,114.63,34.58744749]
[1743696331423,0.28432314,114.65,114.62,43.31184749]
[1743696331620,0.42648471,114.65,114.62,43.31184749]
[1743696331814,0.42648471,114.65,114.62,8.7244]
[1743696332398,9.5,114.64,114.63,34.58744749]
[1743696332598,9.5,114.64,114.63,43.31114749]
[1743696333014,9.5,114.64,114.63,8.7237]
[1743696334110,0.14216157,114.63,114.6,8.726]
[1743696334327,34.87177063,114.62,114.58,8.7275]
[1743696334508,18.79181043,114.61,114.57,8.7282]
[1743696334730,0.28432314,114.57,114.52,8.732]
[1743696334917,9.46,114.56,114.54,34.58744749]
[1743696335539,9.46,114.56,114.55,34.58744749]
[1743696336107,9.48,114.59,114.55,34.58744749]
[1743696336325,9.48,114.59,114.57,34.58744749]
[1743696336605,9.48,114.59,114.58,8.7275]
[1743696336936,9.46,114.62,114.58,65.13374749]
[1743696337240,9.46,114.62,114.61,34.58744749]
[1743696337425,9.46,114.62,114.58,36.6967]
[1743696337607,9.46,114.62,114.59,34.58744749]
[1743696337808,9.46,114.62,114.61,34.58744749]
[1743696338811,9.46,114.62,114.6,43.31304749]
[1743696340725,0.28432314,114.61,114.57,21.8201]
[1743696340932,0.28432314,114.61,114.57,56.40754749]
[1743696341427,0.28432314,114.61,114.57,21.8201]
[1743696341634,35.0139322,114.61,114.57,34.58744749]
[1743696341937,35.0139322,114.61,114.56,43.31644749]
[1743696342140,0.42648471,114.59,114.56,8.729]
[1743696342915,0.42648471,114.59,114.56,43.31644749]
[1743696343121,34.58744749,114.61,114.56,65.13904749]
[1743696343332,0.42648471,114.61,114.58,34.58744749]
[1743696343845,9.54,114.6,114.58,34.58744749]
[1743696344808,9.54,114.6,114.57,34.58744749]
[1743696345212,9.54,114.6,114.58,8.7275]
[1743696346422,0.28432314,114.59,114.58,8.7275]
[1743696347149,0.28432314,114.59,114.57,8.7282]
[1743696347650,35.0139322,114.59,114.56,8.7286]
[1743696347818,0.42648471,114.59,114.56,8.7286]
[1743696350238,53.66358106,114.59,114.56,8.7286]
[1743696350439,53.66358106,114.59,114.52,51.7336]
[1743696350440,34.58744749,114.57,114.52,21.8295]
[1743696350623,0.28432314,114.55,114.53,8.7313]
[1743696350821,9.46,114.54,114.53,8.7313]
[1743696351018,34.58744749,114.56,114.53,8.7313]
[1743696351019,0.14216157,114.59,114.53,99.73449498]
[1743696351344,0.28432314,114.59,114.56,34.58744749]
[1743696351533,0.42648471,114.59,114.57,8.7282]
[1743696351723,0.14216157,114.59,114.57,43.31564749]
[1743696352444,0.28432314,114.59,114.57,43.31564749]
[1743696352746,0.14216157,114.59,114.57,8.7282]
[1743696353244,0.42648471,114.59,114.55,8.7298]
[1743696353419,0.42648471,114.59,114.55,65.14174749]
[1743696353616,0.28432314,114.59,114.56,34.58744749]
[1743696353926,0.28432314,114.59,114.57,34.58744749]
[1743696355137,0.28432314,114.59,114.55,30.5543]
[1743696355343,0.28432314,114.59,114.56,34.58744749]
[1743696355537,0.42648471,114.59,114.52,43.6595]
[1743696355728,35.0139322,114.59,114.54,34.58744749]
[1743696355929,0.42648471,114.59,114.55,34.58744749]
[1743696356131,0.42648471,114.59,114.56,34.58744749]
[1743696356821,9.48,114.6,114.58,34.58744749]
[1743696357038,326.8,114.63,114.59,34.58744749]
[1743696357244,326.8,114.63,114.57,26.0]
[1743696357445,0.14216157,114.62,114.6,34.58744749]
[1743696357747,0.14216157,114.62,114.57,26.0]
[1743696357748,0.14216157,114.62,114.61,8.7252]
[1743696357938,326.8,114.63,114.61,8.7252]
[1743696358345,53.66358106,114.62,114.6,8.726]
[1743696358551,53.66358106,114.62,114.58,8.7275]
[1743696358919,0.42648471,114.6,114.58,8.7275]
[1743696359353,35.0139322,114.6,114.58,8.7275]
[1743696359718,0.42648471,114.6,114.57,8.7282]
[1743696359914,35.0139322,114.6,114.57,8.7282]
[1743696360115,9.44,114.59,114.57,8.7282]
[1743696360548,0.28432314,114.58,114.57,8.7282]
[1743696361032,0.42648471,114.58,114.57,8.7282]
[1743696361242,0.42648471,114.58,114.56,8.7286]
[1743696361621,21.61051228,114.57,114.55,8.7298]
[1743696361822,0.28432314,114.56,114.55,8.7298]
[1743696362219,0.14216157,114.55,114.5,8.7336]
[1743696362418,22.03699699,114.53,114.5,8.7336]
[1743696362645,0.42648471,114.51,114.5,8.7336]
[1743696363032,0.14216157,114.51,114.5,8.7336]
[1743696363226,0.42648471,114.53,114.5,30.37577133]
[1743696363426,9.44,114.54,114.52,21.64217133]
[1743696363728,9.44,114.54,114.53,8.7313]
[1743696363729,0.28432314,114.54,114.53,8.7313]
[1743696363928,0.28432314,114.54,114.53,43.32854801]
[1743696364126,0.28432314,114.54,114.53,8.7313]
[1743696364437,9.42,114.55,114.53,43.32854801]
[1743696364621,9.42,114.55,114.54,34.59724801]
[1743696365232,9.42,114.55,114.53,43.32854801]
[1743696366044,9.70432314,114.55,114.54,34.59724801]
[1743696366728,9.70432314,114.55,114.53,43.32854801]
[1743696367427,9.70432314,114.55,114.54,34.59724801]
[1743696367730,9.4,114.58,114.55,8.7298]
[1743696367937,0.14216157,114.61,114.57,34.59724801]
[1743696368250,0.42648471,114.61,114.59,34.59724801]
[1743696368639,9.4,114.62,114.55,30.5543]
[1743696368831,0.28432314,114.61,114.58,34.59724801]
[1743696369148,18.933972,114.61,114.57,34.59724801]
[1743696369341,0.14216157,114.6,114.58,34.59724801]
[1743696369537,0.14216157,114.6,114.57,34.59724801]
[1743696369747,0.14216157,114.6,114.58,8.7275]
[1743696369946,0.14216157,114.59,114.57,8.7279]
[1743696371940,0.14216157,114.59,114.56,43.2958265]
[1743696372450,0.14216157,114.59,114.56,8.729]
[1743696372751,34.85114964,114.59,114.56,8.729]
[1743696373532,0.28432314,114.57,114.55,8.7298]
[1743696373733,0.14216157,114.55,114.51,56.3982265]
[1743696373940,0.14216157,114.55,114.53,8.7313]
[1743696374453,0.42648471,114.55,114.53,8.7313]
[1743696374640,34.99331121,114.55,114.52,8.732]
[1743696375552,18.64964886,114.54,114.51,8.7324]
[1743696375765,53.64296007,114.55,114.51,8.7324]
[1743696376053,53.64296007,114.55,114.5,34.5668265]
[1743696376959,34.5668265,114.52,114.48,8.7351]
[1743696377135,0.28432314,114.5,114.48,8.7351]
[1743696377536,0.28432314,114.5,114.48,43.3019265]
[1743696378232,0.28432314,114.5,114.48,65.1397265]
[1743696378656,19.07613357,114.5,114.48,8.7351]
[1743696378837,34.5668265,114.49,114.46,8.7366]
[1743696379153,0.28432314,114.49,114.46,43.3034265]
[1743696379628,0.28432314,114.49,114.46,65.1450265]
[1743696379828,0.28432314,114.49,114.47,34.5668265]
[1743696380255,0.28432314,114.49,114.46,65.1450265]
[1743696380448,0.28432314,114.49,114.47,34.5668265]
[1743696380942,0.28432314,114.49,114.48,34.5668265]
[1743696381143,0.28432314,114.49,114.47,34.5668265]
[1743696381857,0.28432314,114.49,114.46,65.1450265]
[1743696382437,34.5668265,114.47,114.43,8.7389]
[1743696382637,53.64296007,114.46,114.43,8.7389]
[1743696382853,0.28432314,114.44,114.43,8.7389]
[1743696383247,136.0,114.47,114.43,65.1531265]
[1743696383449,0.28432314,114.49,114.46,34.5668265]
[1743696383758,178.2501265,114.52,114.47,34.5668265]
[1743696383967,28.11181043,114.51,114.48,34.5668265]
[1743696384257,0.28432314,114.5,114.48,34.5668265]
[1743696384463,0.28432314,114.5,114.49,8.7343]
[1743696384660,9.32,114.51,114.49,8.7343]
[1743696384846,497.4068265,114.54,114.49,8.7343]
[1743696385051,472.16,114.54,114.5,34.5668265]
[1743696385251,0.28432314,114.53,114.5,34.5668265]
[1743696385462,336.16,114.54,114.5,34.5668265]
[1743696385762,0.28432314,114.52,114.49,30.5702]
[1743696385966,0.28432314,114.52,114.49,8.7343]
[1743696386267,34.85114964,114.52,114.49,8.7343]
[1743696386440,0.28432314,114.52,114.49,8.7343]
[1743696386646,0.28432314,114.52,114.49,43.3011265]
[1743696386871,34.85114964,114.52,114.49,8.7343]
[1743696387370,18.79181043,114.51,114.49,8.7343]
[1743696387546,53.35863693,114.51,114.49,8.7343]
[1743696387745,0.28432314,114.5,114.49,8.7343]
[1743696388258,0.28432314,114.5,114.45,6.0424]
[1743696388259,0.28432314,114.48,114.46,8.7366]
[1743696388468,9.32,114.47,114.46,8.7366]
[1743696388847,9.60432314,114.47,114.46,8.7366]
[1743696389245,0.28432314,114.46,114.44,8.7382]
[1743696390566,9.60432314,114.46,114.44,43.3050265]
[1743696390763,9.60432314,114.46,114.45,34.5668265]
[1743696390966,136.0,114.48,114.45,34.5668265]
[1743696391150,327.0,114.49,114.47,34.5668265]
[1743696392166,0.28432314,114.48,114.44,30.5837]
[1743696392368,0.28432314,114.48,114.45,34.5668265]
[1743696392545,0.28432314,114.48,114.46,43.3034265]
[1743696394376,19.07613357,114.48,114.46,8.7366]
[1743696394753,19.07613357,114.48,114.45,34.5668265]
[1743696395151,19.07613357,114.48,114.44,34.5668265]
[1743696395369,19.07613357,114.48,114.45,34.5668265]
[1743696395769,19.07613357,114.48,114.41,117.9931]
[1743696395957,19.07613357,114.48,114.45,34.5668265]
[1743696396560,0.28432314,114.48,114.45,34.5668265]
[1743696396762,0.28432314,114.48,114.47,34.5668265]
[1743696396966,0.28432314,114.48,114.43,74.2777]
[1743696397165,0.28432314,114.48,114.46,34.5668265]
[1743696397675,53.64296007,114.48,114.44,34.5668265]
[1743696397873,19.07613357,114.46,114.43,30.5863]
[1743696399763,19.07613357,114.46,114.43,65.1531265]
[1743696400861,9.2,114.45,114.43,8.7389]
[1743696401067,53.64296007,114.44,114.42,8.7393]
[1743696401455,19.07613357,114.44,114.42,8.7393]
[1743696402069,19.07613357,114.44,114.38,21.8569]
[1743696402070,19.07613357,114.42,114.38,21.8569]
[1743696402268,53.64296007,114.42,114.38,30.5996]
[1743696402466,53.64296007,114.42,114.38,65.1664265]
[1743696402672,34.5668265,114.41,114.38,8.7427]
[1743696402870,19.07613357,114.41,114.38,8.7427]
[1743696403073,136.0,114.4,114.37,34.5668265]
[1743696403256,19.07613357,114.39,114.37,8.7431]
[1743696404160,19.07613357,114.39,114.36,8.7443]
[1743696404981,19.07613357,114.39,114.36,65.1718265]
[1743696405879,28.25613357,114.39,114.36,65.1718265]
[1743696406082,62.82296007,114.39,114.36,8.7443]
[1743696406280,28.25613357,114.39,114.35,34.5668265]
[1743696407094,164.25613357,114.39,114.35,34.5668265]
[1743696407400,19.07613357,114.37,114.33,30.6131]
[1743696407695,19.07613357,114.37,114.34,34.5668265]
[1743696408073,19.07613357,114.37,114.35,34.5668265]
[1743696408279,19.07613357,114.37,114.36,8.7443]
[1743696408582,0.28432314,114.37,114.36,8.7443]
[1743696409301,19.07613357,114.37,114.35,43.3115265]
[1743696409461,39.07613357,114.35,114.3,34.5668265]
[1743696409804,19.07613357,114.33,114.3,34.5668265]
[1743696409962,0.28432314,114.33,114.31,34.5668265]
[1743696410167,0.28432314,114.33,114.32,43.3141265]
[1743696412583,9.2,114.34,114.32,43.3141265]
[1743696412772,9.2,114.34,114.32,8.7473]
[1743696412975,9.2,114.34,114.32,43.3141265]
[1743696413186,0.28432314,114.33,114.3,8.7489]
[1743696413572,53.64296007,114.33,114.3,8.7489]
[1743696414785,53.64296007,114.33,114.25,30.6341]
[1743696414786,53.64296007,114.31,114.25,30.6341]
[1743696414987,53.64296007,114.31,114.25,8.7527]
[1743696414988,19.07613357,114.29,114.25,8.7527]
[1743696415196,62.86296007,114.29,114.25,8.7527]
[1743696415382,34.5668265,114.28,114.25,8.7527]
[1743696416494,164.29613357,114.29,114.25,8.7527]
[1743696416679,34.5668265,114.28,114.25,8.7527]
[1743696419002,0.28432314,114.28,114.26,34.5668265]
[1743696419299,0.14216157,114.28,114.27,34.5668265]
[1743696419597,136.0,114.3,114.27,34.5668265]
[1743696419780,136.0,114.3,114.28,34.5668265]
[1743696419975,18.79181043,114.31,114.28,34.5668265]